bitfinex/quotes_BTCUSD_20250817
["timestamp","ask_amount","ask_price","bid_price","bid_amount"]
[1755465481687,0.28303957,117810.0,117800.0,0.38385874]
[1755465491248,0.28303957,117810.0,117800.0,0.26030929]
[1755465491468,0.02846065,117810.0,117800.0,0.81284786]
[1755465491679,0.2000973,117810.0,117800.0,0.81284786]
[1755465491887,0.19822552,117810.0,117800.0,0.81284786]
[1755465494117,0.02846065,117810.0,117800.0,0.81284786]
[1755465495945,0.02846065,117810.0,117800.0,0.85136937]
[1755465496352,0.02846065,117810.0,117800.0,0.34297079]
[1755465496569,0.02846065,117810.0,117800.0,0.85136937]
[1755465497049,0.02846065,117810.0,117800.0,0.59717008]
[1755465497268,0.02846065,117810.0,117800.0,0.85136937]
[1755465497930,0.2000973,117810.0,117800.0,0.85136937]
[1755465498141,0.19822552,117810.0,117800.0,0.59717008]
[1755465499866,0.19695229,117810.0,117800.0,0.59717008]
[1755465509731,0.19695229,117810.0,117800.0,0.4273908]
[1755465514386,0.52079344,117810.0,117800.0,0.001]
[1755465514584,0.53794563,117810.0,117800.0,0.12984]
[1755465515046,0.60560749,117810.0,117800.0,0.12984]
[1755465515239,0.60809749,117810.0,117800.0,0.001]
[1755465515458,0.60809749,117810.0,117800.0,0.13008]
[1755465516491,0.60809749,117810.0,117800.0,0.12908]
[1755465517119,0.54043563,117810.0,117800.0,0.12908]
[1755465519808,0.5391624,117810.0,117800.0,0.12908]
[1755465522053,0.5366724,117810.0,117800.0,0.12908]
[1755465536025,0.5366724,117810.0,117800.0,0.13221]
[1755465539802,0.28119988,117810.0,117800.0,0.13436]
[1755465539957,0.53539917,117810.0,117800.0,0.13436]
[1755465540589,0.28119988,117810.0,117800.0,0.13436]
[1755465541013,0.27921988,117810.0,117800.0,0.38855929]
[1755465541414,0.27921988,117810.0,117800.0,0.13436]
[1755465545003,0.53341917,117810.0,117800.0,0.13436]
[1755465546890,0.53539917,117810.0,117800.0,0.13436]
[1755465547581,0.52820723,117810.0,117800.0,0.13436]
[1755465549793,0.27400794,117810.0,117800.0,0.13436]
[1755465550003,0.27400794,117810.0,117800.0,0.38855929]
[1755465550708,0.27400794,117810.0,117800.0,0.13436]
[1755465551981,0.52820723,117810.0,117800.0,0.13436]
[1755465559692,0.526934,117810.0,117800.0,0.13436]
[1755465561511,0.526934,117810.0,117800.0,0.12908]
[1755465561713,0.27273471,117810.0,117800.0,0.12908]
[1755465561924,0.526934,117810.0,117800.0,0.12908]
[1755465562460,0.526934,117810.0,117800.0,0.13433]
[1755465572581,0.27273471,117810.0,117800.0,0.38852929]
[1755465572807,0.27075471,117810.0,117800.0,0.38852929]
[1755465573889,0.27075471,117810.0,117800.0,0.13433]
[1755465579312,0.27075471,117810.0,117800.0,0.38852929]
[1755465579839,0.26948148,117810.0,117800.0,0.38852929]
[1755465580771,0.26948148,117810.0,117800.0,0.13433]
[1755465580987,0.52368077,117810.0,117800.0,0.13433]
[1755465582059,0.52566077,117810.0,117800.0,0.13433]
[1755465582260,0.52566077,117810.0,117800.0,0.13222]
[1755465582707,0.16977928,117800.0,117790.0,0.025508]
[1755465582934,0.16980491,117790.0,117780.0,0.25419929]
[1755465583168,0.27206798,117790.0,117780.0,0.41054803]
[1755465583432,0.27206798,117790.0,117780.0,0.41375803]
[1755465584052,0.27206798,117790.0,117780.0,0.41575803]
[1755465585338,0.27206798,117790.0,117780.0,0.41375803]
[1755465585801,0.27206798,117790.0,117780.0,0.41475803]
[1755465585992,0.27206798,117790.0,117780.0,0.16055874]
[1755465586195,0.27206798,117790.0,117780.0,0.41475803]
[1755465588622,0.27206798,117790.0,117780.0,0.38920803]
[1755465588841,0.27206798,117790.0,117780.0,0.41471803]
[1755465589373,0.27206798,117790.0,117780.0,0.15926777]
[1755465589601,0.27413798,117790.0,117780.0,0.13375777]
[1755465589844,0.27413798,117790.0,117780.0,0.38795706]
[1755465590060,0.27206798,117790.0,117780.0,0.38795706]
[1755465597178,0.52833727,117790.0,117780.0,0.00104874]
[1755465597396,0.53150727,117790.0,117780.0,0.12980874]
[1755465597607,0.52833727,117790.0,117780.0,0.12980874]
[1755465598365,0.52833727,117790.0,117780.0,0.12880874]
[1755465599002,0.27413798,117790.0,117780.0,0.12880874]
[1755465599318,0.27730798,117790.0,117780.0,0.12880874]
[1755465599727,0.27603453,117790.0,117780.0,0.12880874]
[1755465600384,0.27286453,117790.0,117780.0,0.12880874]
[1755465600990,0.27286453,117790.0,117780.0,0.38300803]
[1755465602309,0.27286453,117790.0,117780.0,0.38503803]
[1755465602520,0.27286453,117790.0,117780.0,0.38824803]
[1755465608935,0.53024382,117790.0,117780.0,0.12880874]
[1755465609182,0.53024382,117790.0,117780.0,4.874e-05]
[1755465609404,0.53024382,117790.0,117780.0,0.12880874]
[1755465609839,0.87024382,117790.0,117780.0,0.12880874]
[1755465610268,0.87024382,117790.0,117780.0,4.874e-05]
[1755465610459,0.87024382,117790.0,117780.0,0.12880874]
[1755465612062,0.87024382,117790.0,117780.0,0.12876874]
[1755465613583,0.61286453,117790.0,117780.0,0.12876874]
[1755465613837,0.86706382,117790.0,117780.0,0.12876874]
[1755465614516,0.61286453,117790.0,117780.0,0.12876874]
[1755465614680,0.86706382,117790.0,117780.0,0.12876874]
[1755465618733,0.86706382,117790.0,117780.0,0.1285655]
[1755465619692,0.86579037,117790.0,117780.0,0.1285655]
[1755465620639,0.86579037,117790.0,117780.0,0.12743634]
[1755465621917,0.86579037,117790.0,117780.0,0.12655544]
[1755465626368,0.61159108,117790.0,117780.0,0.12655544]
[1755465626625,0.86579037,117790.0,117780.0,0.12655544]
[1755465637256,0.88170263,117790.0,117780.0,0.12655544]
[1755465637532,0.86579037,117790.0,117780.0,0.12655544]
[1755465637746,0.88170263,117790.0,117780.0,0.12655544]
[1755465638162,0.86579037,117790.0,117780.0,0.12655544]
[1755465638365,0.8817073,117790.0,117780.0,0.12655544]
[1755465639593,0.88043385,117790.0,117780.0,0.12655544]
[1755465643650,0.86451692,117790.0,117780.0,0.12655544]
[1755465643850,0.88043446,117790.0,117780.0,0.12655544]
[1755465651794,0.18725713,117780.0,117770.0,0.25742929]
[1755465652001,0.27207118,117780.0,117770.0,0.13402]
[1755465652922,0.27207118,117780.0,117770.0,0.38921929]
[1755465655520,0.27256118,117780.0,117770.0,0.13502]
[1755465655720,0.52676047,117780.0,117770.0,0.13502]
[1755465656534,0.52676047,117780.0,117770.0,0.13402]
[1755465656734,0.52676047,117780.0,117770.0,0.00534]
[1755465656953,0.52676047,117780.0,117770.0,0.13402]
[1755465658642,0.27256118,117780.0,117770.0,0.13402]
[1755465659724,0.27128762,117780.0,117770.0,0.13402]
[1755465662976,0.27128762,117780.0,117770.0,0.13079]
[1755465663178,0.27128762,117780.0,117770.0,0.13395]
[1755465673310,0.52548691,117780.0,117770.0,0.13395]
[1755465675395,0.27128762,117780.0,117770.0,0.13395]
[1755465675581,0.52548691,117780.0,117770.0,0.13395]
[1755465679799,0.52421335,117780.0,117770.0,0.13395]
[1755465680838,0.16983695,117760.0,117750.0,0.06636253]
[1755465681074,0.50885029,117760.0,117750.0,0.159464]
[1755465681538,0.254651,117760.0,117750.0,0.159464]
[1755465681993,0.254651,117760.0,117750.0,0.38814929]
[1755465682537,0.254651,117760.0,117750.0,0.39014929]
[1755465682754,0.254651,117760.0,117750.0,0.38914929]
[1755465682963,0.254651,117760.0,117750.0,0.39014929]
[1755465683183,0.254651,117760.0,117750.0,0.38914929]
[1755465684506,0.254651,117760.0,117750.0,0.13495]
[1755465685508,0.254651,117760.0,117750.0,0.38914929]
[1755465690887,0.254651,117760.0,117750.0,0.13495]
[1755465691113,0.254651,117760.0,117750.0,0.38914929]
[1755465691803,0.254651,117760.0,117750.0,0.13495]
[1755465694525,0.254651,117760.0,117750.0,0.38914929]
[1755465699778,0.25337723,117760.0,117750.0,0.38914929]
[1755465711784,0.25541723,117760.0,117750.0,0.38914929]
[1755465713337,0.25541723,117760.0,117750.0,0.13495]
[1755465714955,0.52706554,117760.0,117750.0,0.001]
[1755465715440,0.52706554,117760.0,117750.0,0.12968]
[1755465715640,0.52706554,117760.0,117750.0,0.12868]
[1755465716612,0.53016554,117760.0,117750.0,0.12868]
[1755465716813,0.53878146,117760.0,117750.0,0.12868]
[1755465717075,0.53978146,117760.0,117750.0,0.12868]
[1755465717790,0.28558217,117760.0,117750.0,0.12868]
[1755465717987,0.53978146,117760.0,117750.0,0.12868]
[1755465718751,0.53116554,117760.0,117750.0,0.12868]
[1755465719860,0.52989177,117760.0,117750.0,0.12868]
[1755465720350,0.52679177,117760.0,117750.0,0.13066]
[1755465720561,0.52679177,117760.0,117750.0,0.13378]
[1755465726964,0.52679177,117760.0,117750.0,0.13066]
[1755465730054,0.52679177,117760.0,117750.0,0.12868]
[1755465730268,0.52985177,117760.0,117750.0,0.12868]
[1755465731828,0.1698658,117740.0,117730.0,0.063648]
[1755465732046,0.18448163,117740.0,117730.0,0.44849729]
[1755465733145,0.18448163,117740.0,117730.0,0.44998513]
[1755465733394,0.18448163,117740.0,117730.0,0.45198513]
[1755465736025,0.18448163,117740.0,117730.0,0.46059716]
[1755465737430,0.18448163,117740.0,117730.0,0.07771787]
[1755465737431,0.26929568,117740.0,117730.0,0.07771787]
[1755465737647,0.26929568,117740.0,117730.0,0.43507916]
[1755465738228,0.26929568,117740.0,117730.0,0.43407916]
[1755465738559,0.26929568,117740.0,117730.0,0.39907916]
[1755465739128,0.26929568,117740.0,117730.0,0.39707916]
[1755465739306,0.26929568,117740.0,117730.0,0.39807916]
[1755465741286,0.26929568,117740.0,117730.0,0.14387987]
[1755465741417,0.26929568,117740.0,117730.0,0.39807916]
[1755465745723,0.27124568,117740.0,117730.0,0.14387987]
[1755465745925,0.27124568,117740.0,117730.0,0.39807916]
[1755465747128,0.26929568,117740.0,117730.0,0.39807916]
[1755465752548,0.26929568,117740.0,117730.0,0.14387987]
[1755465753171,0.26929568,117740.0,117730.0,0.39807916]
[1755465755191,0.26929568,117740.0,117730.0,0.14387987]
[1755465755425,0.26929568,117740.0,117730.0,0.39807916]
[1755465758054,0.26929568,117740.0,117730.0,0.14387987]
[1755465758280,0.26929568,117740.0,117730.0,0.39807916]
[1755465765185,0.26929568,117740.0,117730.0,0.56795939]
[1755465765388,0.26929568,117740.0,117730.0,0.39807916]
[1755465767005,0.01461583,117740.0,117730.0,0.82215868]
[1755465767433,0.01461583,117740.0,117730.0,0.84767968]
[1755465768293,0.01461583,117740.0,117730.0,0.59348039]
[1755465769277,0.18448163,117740.0,117730.0,0.59348039]
[1755465777708,0.01461583,117740.0,117730.0,0.84767968]
[1755465777916,0.01461583,117740.0,117730.0,0.59348039]
[1755465783757,0.01461583,117740.0,117730.0,0.3392811]
[1755465783961,0.01461583,117740.0,117730.0,0.59348039]
[1755465792386,0.01461583,117740.0,117730.0,0.3392811]
[1755465792599,0.01461583,117740.0,117730.0,0.59348039]
[1755465801517,0.01461583,117740.0,117730.0,0.3392811]
[1755465801715,0.01461583,117740.0,117730.0,0.59348039]
[1755465802370,0.18448163,117740.0,117730.0,0.59348039]
[1755465804421,0.01461583,117740.0,117730.0,0.59348039]
[1755465817918,0.18661163,117740.0,117730.0,0.59348039]
[1755465824576,0.18661163,117740.0,117730.0,0.3392811]
[1755465824803,0.18661163,117740.0,117730.0,0.59348039]
[1755465830926,0.18448163,117740.0,117730.0,0.59348039]
[1755465833151,0.18508163,117740.0,117730.0,0.59348039]
[1755465836155,0.18448163,117740.0,117730.0,0.59348039]
[1755465839159,0.18448163,117740.0,117730.0,0.56795939]
[1755465841358,0.01461583,117740.0,117730.0,0.56795939]
[1755465842863,0.01461583,117740.0,117730.0,0.82215868]
[1755465843037,0.01461583,117740.0,117730.0,0.84767668]
[1755465843849,0.01461583,117740.0,117730.0,0.59347739]
[1755465845032,0.01461583,117740.0,117730.0,0.84767668]
[1755465845348,0.01461583,117740.0,117730.0,0.3392781]
[1755465845538,0.01461583,117740.0,117730.0,0.59347739]
[1755465848556,0.01461583,117740.0,117730.0,0.84767668]
[1755465848767,0.01461583,117740.0,117730.0,0.3624981]
[1755465848964,0.01461583,117740.0,117730.0,0.87089668]
[1755465849957,0.01461583,117740.0,117730.0,0.87189668]
[1755465850160,0.01461583,117740.0,117730.0,0.87089668]
[1755465850305,0.01461583,117740.0,117730.0,0.87189668]
[1755465851610,0.01461583,117740.0,117730.0,3.24826668]
[1755465851813,0.01461583,117740.0,117730.0,2.62942768]
[1755465852577,0.24918786,117770.0,117750.0,0.16984215]
[1755465852773,0.33400191,117770.0,117760.0,0.13076296]
[1755465852978,0.33617191,117770.0,117760.0,0.13076296]
[1755465854457,0.33717191,117770.0,117760.0,0.13076296]
[1755465855866,0.26851005,117770.0,117760.0,0.13076296]
[1755465856067,0.26951005,117770.0,117760.0,0.13076296]
[1755465858188,0.26631005,117770.0,117760.0,0.13076296]
[1755465858657,0.26631005,117770.0,117760.0,0.30059991]
[1755465858815,0.26631005,117770.0,117760.0,0.29847695]
[1755465862963,0.52050934,117770.0,117760.0,0.12864]
[1755465863172,0.26631005,117770.0,117760.0,0.13076296]
[1755465863386,0.52050934,117770.0,117760.0,0.13076296]
[1755465867552,0.52050934,117770.0,117760.0,0.13281296]
[1755465867691,0.52050934,117770.0,117760.0,0.13581296]
[1755465867908,0.52050934,117770.0,117760.0,0.13076296]
[1755465868922,0.52370934,117770.0,117760.0,0.13076296]
[1755465873824,0.52050934,117770.0,117760.0,0.13076296]
[1755465880525,0.26631005,117770.0,117760.0,0.13076296]
[1755465880716,0.52050934,117770.0,117760.0,0.13076296]
[1755465883714,0.26631005,117770.0,117760.0,0.13076296]
[1755465883920,0.52050934,117770.0,117760.0,0.30271991]
[1755465884085,0.52050934,117770.0,117760.0,0.30370695]
[1755465888548,0.26631005,117770.0,117760.0,0.30370695]
[1755465888787,0.52050934,117770.0,117760.0,0.30370695]
[1755465891268,0.52050934,117770.0,117760.0,0.13387]
[1755465891477,0.52050934,117770.0,117760.0,0.13599296]
[1755465892808,0.26631005,117770.0,117760.0,0.13599296]
[1755465892936,0.52050934,117770.0,117760.0,0.13599296]
[1755465898435,0.52050934,117770.0,117760.0,0.30582991]
[1755465898701,0.52050934,117770.0,117760.0,0.30370695]
[1755465899971,0.26631005,117770.0,117760.0,0.30370695]
[1755465900199,0.26414005,117770.0,117760.0,0.30370695]
[1755465900543,0.51833934,117770.0,117760.0,0.30370695]
[1755465902184,0.51885934,117770.0,117760.0,0.30370695]
[1755465903006,0.51885934,117770.0,117760.0,0.13387]
[1755465903215,0.51885934,117770.0,117760.0,0.13599296]
[1755465903926,0.51885934,117770.0,117760.0,0.13076296]
[1755465911331,0.26466005,117770.0,117760.0,0.13076296]
[1755465911532,0.51885934,117770.0,117760.0,0.13076296]
[1755465927106,0.51885934,117770.0,117760.0,0.13273296]
[1755465928079,0.51885934,117770.0,117760.0,0.13588296]
[1755465930144,0.26466005,117770.0,117760.0,0.30571991]
[1755465930364,0.51833934,117770.0,117760.0,0.30359695]
[1755465934297,0.26414005,117770.0,117760.0,0.30359695]
[1755465934448,0.51833934,117770.0,117760.0,0.30359695]
[1755465941374,0.51833934,117770.0,117760.0,0.13376]
[1755465941714,0.52048934,117770.0,117760.0,0.13588296]
[1755465943325,0.26629005,117770.0,117760.0,0.13588296]
[1755465943561,0.52048934,117770.0,117760.0,0.13588296]
[1755465946398,0.26629005,117770.0,117760.0,0.13588296]
[1755465946615,0.52048934,117770.0,117760.0,0.13588296]
[1755465951761,0.52048934,117770.0,117760.0,0.13539286]
[1755465960203,0.26629005,117770.0,117760.0,0.13539286]
[1755465960427,0.52048934,117770.0,117760.0,0.13539286]
[1755465966032,0.26629005,117770.0,117760.0,0.30522981]
[1755465966237,0.26629005,117770.0,117760.0,0.30310685]
[1755465967084,0.26414005,117770.0,117760.0,0.30310685]
[1755465969982,0.26625005,117770.0,117760.0,0.30310685]
[1755465973418,0.26625005,117770.0,117760.0,0.55730614]
[1755465974541,0.26625005,117770.0,117760.0,0.30310685]
[1755465981494,0.26625005,117770.0,117760.0,0.1332699]
[1755465981702,0.26625005,117770.0,117760.0,0.13539286]
[1755465983805,0.52044934,117770.0,117760.0,0.13539286]
[1755465985315,0.52044934,117770.0,117760.0,0.13224286]
[1755465987791,0.26625005,117770.0,117760.0,0.13224286]
[1755465987994,0.52044934,117770.0,117760.0,0.13224286]
[1755465989411,0.26625005,117770.0,117760.0,0.13224286]
[1755466003774,0.26625005,117770.0,117760.0,0.13523286]
[1755466004268,0.26516663,117770.0,117760.0,0.13523286]
[1755466005682,0.26516663,117770.0,117760.0,0.13027286]
[1755466008080,0.26516663,117770.0,117760.0,0.13223286]
[1755466009870,0.26516663,117770.0,117760.0,0.13522286]
[1755466019378,0.26516663,117770.0,117760.0,0.38942215]
[1755466019670,0.26516663,117770.0,117760.0,0.38729919]
[1755466025125,0.26516663,117770.0,117760.0,0.38234919]
[1755466025339,0.26516663,117770.0,117760.0,0.1281499]
[1755466025539,0.26516663,117770.0,117760.0,0.38447215]
[1755466025770,0.26516663,117770.0,117760.0,0.38234919]
[1755466027127,0.26516663,117770.0,117760.0,0.38436919]
[1755466027340,0.26516663,117770.0,117760.0,0.38754919]
[1755466028816,0.26516663,117770.0,117760.0,0.1333499]
[1755466029160,0.26516663,117770.0,117760.0,0.38967215]
[1755466029406,0.26516663,117770.0,117760.0,0.38754919]
[1755466032582,0.26516663,117770.0,117760.0,0.1333499]
[1755466032754,0.26516663,117770.0,117760.0,0.13547286]
[1755466033349,0.26516663,117770.0,117760.0,0.38967215]
[1755466033560,0.26516663,117770.0,117760.0,0.38754919]
[1755466034699,0.26516663,117770.0,117760.0,0.1333499]
[1755466034829,0.26516663,117770.0,117760.0,0.38754919]
[1755466035031,0.26305663,117770.0,117760.0,0.38754919]
[1755466038884,0.26305663,117770.0,117760.0,0.55738614]
[1755466039088,0.001,117770.0,117760.0,0.81158543]
[1755466039477,0.001,117770.0,117760.0,0.86059843]
[1755466040132,0.17575139,117780.0,117770.0,0.16982253]
[1755466040295,0.26056544,117780.0,117770.0,0.42604182]
[1755466040481,0.26056544,117780.0,117770.0,0.42922182]
[1755466041285,0.26064823,117780.0,117770.0,0.42922182]
[1755466043190,0.26164823,117780.0,117770.0,0.42922182]
[1755466044701,0.26164823,117780.0,117770.0,0.25939929]
[1755466048563,0.26164823,117780.0,117770.0,0.42922182]
[1755466049630,0.00957319,117780.0,117770.0,0.42922182]
[1755466050064,0.00957319,117780.0,117770.0,0.45473382]
[1755466050473,0.1793813,117780.0,117770.0,0.45473382]
[1755466050738,0.1783813,117780.0,117770.0,0.45473382]
[1755466051816,0.1783813,117780.0,117770.0,0.45341197]
[1755466052048,0.1793813,117780.0,117770.0,0.45341197]
[1755466052846,0.1783813,117780.0,117770.0,0.45341197]
[1755466053047,0.1793813,117780.0,117770.0,0.45341197]
[1755466056277,0.1793813,117780.0,117770.0,0.45473382]
[1755466096703,0.00957319,117780.0,117770.0,0.45473382]
[1755466098392,0.00957319,117780.0,117770.0,0.49341816]
[1755466109561,0.00957319,117780.0,117770.0,0.48821816]
[1755466111617,0.00957319,117780.0,117770.0,0.49346816]
[1755466113295,0.1793813,117780.0,117770.0,0.49346816]
[1755466118527,0.1793813,117780.0,117770.0,0.62178816]
[1755466125586,0.1793813,117780.0,117770.0,0.58310382]
[1755466126427,0.1793813,117780.0,117770.0,0.58310382]
[1755466128139,0.1793813,117780.0,117770.0,0.32890453]
[1755466128346,0.1793813,117780.0,117770.0,0.58310382]
[1755466128552,0.1793813,117780.0,117770.0,0.32890453]
[1755466128762,0.1793813,117780.0,117770.0,0.58310382]
[1755466139494,0.00108279,117780.0,117770.0,0.58310382]
[1755466146645,0.00108279,117780.0,117770.0,0.62165428]
[1755466149582,0.00108279,117780.0,117770.0,0.58310382]
[1755466155021,0.00108279,117780.0,117770.0,0.32890453]
[1755466155219,0.00108279,117780.0,117770.0,0.58310382]
[1755466161621,0.00108279,117780.0,117770.0,0.57785382]
[1755466163780,0.00108279,117780.0,117770.0,0.58312382]
[1755466177510,0.00108279,117780.0,117770.0,0.57785382]
[1755466179586,0.00108279,117780.0,117770.0,0.58288382]
[1755466186495,0.00108279,117780.0,117770.0,0.32868453]
[1755466186735,0.00108279,117780.0,117770.0,0.58288382]
[1755466212483,0.00108279,117780.0,117770.0,0.32868453]
[1755466212655,0.00108279,117780.0,117770.0,0.58288382]
[1755466212656,0.1730209,117780.0,117770.0,0.58288382]
[1755466215747,0.1730209,117780.0,117770.0,0.57785382]
[1755466217769,0.1730209,117780.0,117770.0,0.32365453]
[1755466218040,0.1730209,117780.0,117770.0,0.57785382]
[1755466219123,0.1730209,117780.0,117770.0,0.58307382]
[1755466221426,0.51203424,117780.0,117770.0,0.025512]
[1755466221631,0.18425819,117770.0,117760.0,0.25419929]
[1755466221834,0.18638819,117770.0,117760.0,0.40787329]
[1755466227611,0.18638819,117770.0,117760.0,0.153674]
[1755466227817,0.18638819,117770.0,117760.0,0.40787329]
[1755466228050,0.52839153,117770.0,117760.0,0.025514]
[1755466228283,0.16985138,117750.0,117740.0,0.60455557]
[1755466228504,0.16985138,117750.0,117740.0,0.73480557]
[1755466228717,0.16985138,117750.0,117740.0,0.75182828]
[1755466228944,0.16985138,117750.0,117740.0,0.36946899]
[1755466229161,0.17198138,117750.0,117740.0,0.75182828]
[1755466229589,0.16985138,117750.0,117740.0,0.75182828]
[1755466230627,0.16985138,117750.0,117740.0,0.71309529]
[1755466230829,0.16985138,117750.0,117740.0,0.41309529]
[1755466232404,0.50948472,117750.0,117740.0,0.153676]
[1755466232621,0.25824543,117750.0,117740.0,0.12816]
[1755466233044,0.25528543,117750.0,117740.0,0.12816]
[1755466233630,0.25628543,117750.0,117740.0,0.12816]
[1755466235580,0.25628543,117750.0,117740.0,0.38235929]
[1755466235832,0.25628543,117750.0,117740.0,0.12816]
[1755466235993,0.25628543,117750.0,117740.0,0.38235929]
[1755466237608,0.25628543,117750.0,117740.0,0.38756929]
[1755466239751,0.25566543,117750.0,117740.0,0.38756929]
[1755466249833,0.25566543,117750.0,117740.0,0.81163438]
[1755466250586,0.25566543,117750.0,117740.0,0.64176858]
[1755466251179,0.25566543,117750.0,117740.0,0.81163438]
[1755466253480,0.25566543,117750.0,117740.0,0.83715338]
[1755466254146,0.25566543,117750.0,117740.0,0.66728758]
[1755466256153,0.25566543,117750.0,117740.0,0.83715338]
[1755466258207,0.25566543,117750.0,117740.0,0.58295409]
[1755466259770,0.25566543,117750.0,117740.0,0.55743509]
[1755466260365,0.001,117750.0,117740.0,0.81163438]
[1755466260810,0.001,117750.0,117740.0,0.83715138]
[1755466264679,0.001,117750.0,117740.0,0.3287528]
[1755466264919,0.001,117750.0,117740.0,0.83715138]
[1755466275041,0.00077195,117750.0,117740.0,0.83715138]
[1755466280899,0.00077195,117750.0,117740.0,0.3287528]
[1755466281100,0.00077195,117750.0,117740.0,0.83715138]
[1755466281280,0.00077195,117750.0,117740.0,0.3287528]
[1755466281487,0.00077195,117750.0,117740.0,0.83715138]
[1755466288765,0.00077195,117750.0,117740.0,0.3287528]
[1755466289012,0.17062333,117750.0,117740.0,0.83715138]
[1755466292706,0.17062333,117750.0,117740.0,0.66728558]
[1755466294656,0.17062333,117750.0,117740.0,0.83715138]
[1755466296621,0.17062333,117750.0,117740.0,0.3287528]
[1755466296801,0.17062333,117750.0,117740.0,0.83715138]
[1755466303440,0.17263333,117750.0,117740.0,0.3287528]
[1755466303689,0.17263333,117750.0,117740.0,0.83715138]
[1755466304091,0.17263333,117750.0,117740.0,0.66728558]
[1755466304543,0.17062333,117750.0,117740.0,0.83715138]
[1755466307095,0.17062333,117750.0,117740.0,0.158887]
[1755466307324,0.17062333,117750.0,117740.0,0.66728558]
[1755466307973,0.17062333,117750.0,117740.0,0.155787]
[1755466307974,0.17263333,117750.0,117740.0,0.155787]
[1755466308199,0.17263333,117750.0,117740.0,0.40787629]
[1755466308427,0.26040738,117750.0,117740.0,0.38235929]
[1755466309105,0.25744738,117750.0,117740.0,0.38235929]
[1755466315580,0.25744738,117750.0,117740.0,0.38444929]
[1755466316183,0.25744738,117750.0,117740.0,0.64173858]
[1755466323398,0.00077195,117750.0,117740.0,0.81160438]
[1755466323829,0.00077195,117750.0,117740.0,0.83712138]
[1755466325863,0.00077195,117750.0,117740.0,1.09132067]
[1755466326130,0.00077195,117750.0,117740.0,1.11422067]
[1755466327430,0.19274931,117770.0,117760.0,0.16983695]
[1755466327661,0.27756336,117770.0,117760.0,0.80897553]
[1755466327914,0.26905798,117770.0,117760.0,0.80897553]
[1755466328138,0.26905798,117770.0,117760.0,0.81210553]
[1755466328882,0.26905798,117770.0,117760.0,0.82050918]
[1755466329131,0.26905798,117770.0,117760.0,0.84602318]
[1755466331559,0.09923545,117770.0,117760.0,0.84602318]
[1755466334236,0.26905798,117770.0,117760.0,0.84602318]
[1755466338327,0.09923545,117770.0,117760.0,0.84602318]
[1755466342628,0.08481405,117770.0,117760.0,0.84602318]
[1755466349183,0.25463658,117770.0,117760.0,0.84602318]
[1755466349392,0.1783813,117780.0,117760.0,0.84602318]
[1755466349591,0.26319535,117780.0,117770.0,0.38287929]
[1755466349801,0.26528535,117780.0,117770.0,0.38287929]
[1755466353823,0.16982253,117770.0,117760.0,0.2066846]
[1755466354053,0.18652986,117770.0,117760.0,0.58655389]
[1755466354538,0.18652986,117770.0,117760.0,0.58870389]
[1755466354744,0.18652986,117770.0,117760.0,0.59163389]
[1755466358168,0.18652986,117770.0,117760.0,0.84583318]
[1755466358377,0.18446986,117770.0,117760.0,0.84583318]
[1755466359572,0.18446986,117770.0,117760.0,0.59163389]
[1755466360175,0.18446986,117770.0,117760.0,0.84583318]
[1755466364959,0.17737554,117770.0,117760.0,0.84583318]
[1755466371902,0.17737554,117770.0,117760.0,0.3374346]
[1755466372107,0.17737554,117770.0,117760.0,0.84583318]
[1755466379339,0.17737554,117770.0,117760.0,0.59163389]
[1755466380310,0.17737554,117770.0,117760.0,0.56611989]
[1755466404509,0.17737554,117770.0,117760.0,0.3119206]
[1755466404742,0.17737554,117770.0,117760.0,0.56611989]
[1755466410381,0.17737554,117770.0,117760.0,0.3119206]
[1755466410628,0.17737554,117770.0,117760.0,0.56611989]
[1755466422493,0.17737554,117770.0,117760.0,0.39628294]
[1755466429056,0.17737554,117770.0,117760.0,0.56611989]
[1755466433180,0.17737554,117770.0,117760.0,0.3119206]
[1755466433415,0.17737554,117770.0,117760.0,0.56611989]
[1755466433806,0.17737554,117770.0,117760.0,0.39628294]
[1755466435205,0.17737554,117770.0,117760.0,0.56611989]
[1755466439471,0.17737554,117770.0,117760.0,0.39628294]
[1755466440262,0.17737554,117770.0,117760.0,0.42179694]
[1755466443534,0.17737554,117770.0,117760.0,0.16759765]
[1755466443723,0.17737554,117770.0,117760.0,0.42179694]
[1755466463411,0.17737554,117770.0,117760.0,0.39628294]
[1755466465661,0.17737554,117770.0,117760.0,0.4341978]
[1755466466224,0.17737554,117770.0,117760.0,0.39628294]
[1755466475064,0.16272821,117770.0,117760.0,0.39628294]
[1755466475281,0.16459999,117770.0,117760.0,0.39628294]
[1755466475815,0.16459999,117770.0,117760.0,0.14208365]
[1755466476024,0.16459999,117770.0,117760.0,0.39628294]
[1755466493692,0.16459999,117770.0,117760.0,0.39120294]
[1755466495585,0.16459999,117770.0,117760.0,0.14223365]
[1755466495794,0.16459999,117770.0,117760.0,0.39643294]
[1755466500134,0.16459999,117770.0,117760.0,0.42194794]
[1755466501514,0.16459999,117770.0,117760.0,0.41354429]
[1755466508967,0.16459999,117770.0,117760.0,0.159345]
[1755466509164,0.16459999,117770.0,117760.0,0.41354429]
[1755466511928,0.16459999,117770.0,117760.0,0.58338124]
[1755466515069,0.16459999,117770.0,117760.0,0.58488124]
[1755466515640,0.16459999,117770.0,117760.0,0.41504429]
[1755466531770,0.16459999,117770.0,117760.0,0.160845]
[1755466531990,0.16459999,117770.0,117760.0,0.41504429]
[1755466535502,0.16459999,117770.0,117760.0,0.58488124]
[1755466540042,0.16459999,117770.0,117760.0,0.33068195]
[1755466541134,0.16459999,117770.0,117760.0,0.58488124]
[1755466547019,0.16459999,117770.0,117760.0,0.33068195]
[1755466547277,0.16459999,117770.0,117760.0,0.58488124]
[1755466548664,0.16459999,117770.0,117760.0,0.33068195]
[1755466548856,0.16459999,117770.0,117760.0,0.58488124]
[1755466553518,0.16459999,117770.0,117760.0,0.6222414]
[1755466557114,0.16459999,117770.0,117760.0,0.58488124]
[1755466560125,0.16459999,117770.0,117760.0,0.30516695]
[1755466560332,0.16459999,117770.0,117760.0,0.55936624]
[1755466562457,0.16459999,117770.0,117760.0,0.30516695]
[1755466562876,0.16459999,117770.0,117760.0,0.30566695]
[1755466571705,0.16459999,117770.0,117760.0,0.55986624]
[1755466573328,0.16459999,117770.0,117760.0,0.59804889]
[1755466576316,0.16459999,117770.0,117760.0,0.3438496]
[1755466578023,0.41879928,117770.0,117760.0,0.3438496]
[1755466578239,0.4169275,117770.0,117760.0,0.3438496]
[1755466580273,0.4169275,117770.0,117760.0,0.59804889]
[1755466580702,0.16272821,117770.0,117760.0,0.3438496]
[1755466580967,0.16459999,117770.0,117760.0,0.3438496]
[1755466585532,0.41879928,117770.0,117760.0,0.3438496]
[1755466585717,0.4169275,117770.0,117760.0,0.3438496]
[1755466593750,0.16272821,117770.0,117760.0,0.3438496]
[1755466593952,0.41879928,117770.0,117760.0,0.3438496]
[1755466594303,0.4169275,117770.0,117760.0,0.3438496]
[1755466594512,0.16272821,117770.0,117760.0,0.3438496]